Workbook

Sheet Historische Kursdaten
A1: Historische Kursdaten
A4: Ticker: | B4: ^GSPC
A5: Enddatum (heute): | B5: =TODAY() -> 2017-05-25
A6: Jahre: | B6: 10
A7: Startdatum: | B7: =DATE(YEAR(B5)-B6,MONTH(B5),DAY(B5)) -> 2007-05-25 | E7: Tickersuche:
A9: Date | B9: Open | C9: High | D9: Low | E9: Close | F9: Volume | G9: Adj Close | H9: % Änderung
A10: 2016-05-11 | B10: 2083.290039 | C10: 2083.290039 | D10: 2064.459961 | E10: 2064.459961 | F10: 3821980000 | G10: 2064.459961 | H10: =G10/G11-1 -> -0.009561518249
A11: 2016-05-10 | B11: 2062.629883 | C11: 2084.870117 | D11: 2062.629883 | E11: 2084.389893 | F11: 3600200000 | G11: 2084.389893 | H11: =G11/G12-1 -> 0.01248364384
A12: 2016-05-09 | B12: 2057.550049 | C12: 2064.149902 | D12: 2054.310059 | E12: 2058.689941 | F12: 3788620000 | G12: 2058.689941 | H12: 0.0007534966413
A13: 2016-05-06 | B13: 2047.77002 | C13: 2057.719971 | D13: 2039.449951 | E13: 2057.139893 | F13: 3796350000 | G13: 2057.139893 | H13: 0.003174639195
A14: 2016-05-05 | B14: 2052.949951 | C14: 2060.22998 | D14: 2045.77002 | E14: 2050.629883 | F14: 4008530000 | G14: 2050.629883 | H14: -0.000239007943
A15: 2016-05-04 | B15: 2060.300049 | C15: 2060.300049 | D15: 2045.550049 | E15: 2051.120117 | F15: 4058560000 | G15: 2051.120117 | H15: -0.005936889315
A16: 2016-05-03 | B16: 2077.179932 | C16: 2077.179932 | D16: 2054.889893 | E16: 2063.370117 | F16: 4173390000 | G16: 2063.370117 | H16: -0.00867663846
A17: 2016-05-02 | B17: 2067.169922 | C17: 2083.419922 | D17: 2066.110107 | E17: 2081.429932 | F17: 3841110000 | G17: 2081.429932 | H17: 0.007809946554
A18: 2016-04-29 | B18: 2071.820068 | C18: 2073.850098 | D18: 2052.280029 | E18: 2065.300049 | F18: 4704720000 | G18: 2065.300049 | H18: -0.005063088482
A19: 2016-04-28 | B19: 2090.929932 | C19: 2099.300049 | D19: 2071.620117 | E19: 2075.810059 | F19: 4309840000 | G19: 2075.810059 | H19: -0.009230768157
A20: 2016-04-27 | B20: 2092.330078 | C20: 2099.889893 | D20: 2082.310059 | E20: 2095.149902 | F20: 4100110000 | G20: 2095.149902 | H20: 0.001649352718
A21: 2016-04-26 | B21: 2089.840088 | C21: 2096.870117 | D21: 2085.800049 | E21: 2091.699951 | F21: 3557190000 | G21: 2091.699951 | H21: 0.001872751535
A22: 2016-04-25 | B22: 2089.370117 | C22: 2089.370117 | D22: 2077.52002 | E22: 2087.790039 | F22: 3319740000 | G22: 2087.790039 | H22: -0.00181204585
A23: 2016-04-22 | B23: 2091.48999 | C23: 2094.320068 | D23: 2081.199951 | E23: 2091.580078 | F23: 3790580000 | G23: 2091.580078 | H23: 4.785988915e-05
A24: 2016-04-21 | B24: 2102.090088 | C24: 2103.780029 | D24: 2088.52002 | E24: 2091.47998 | F24: 4175290000 | G24: 2091.47998 | H24: -0.005194027069
A25: 2016-04-20 | B25: 2101.52002 | C25: 2111.050049 | D25: 2096.320068 | E25: 2102.399902 | F25: 4184880000 | G25: 2102.399902 | H25: 0.0007615446319
A26: 2016-04-19 | B26: 2096.050049 | C26: 2104.050049 | D26: 2091.679932 | E26: 2100.800049 | F26: 3896830000 | G26: 2100.800049 | H26: 0.003084485198
A27: 2016-04-18 | B27: 2078.830078 | C27: 2094.659912 | D27: 2073.649902 | E27: 2094.340088 | F27: 3316880000 | G27: 2094.340088 | H27: 0.006541025568
A28: 2016-04-15 | B28: 2083.100098 | C28: 2083.219971 | D28: 2076.310059 | E28: 2080.72998 | F28: 3701450000 | G28: 2080.72998 | H28: -0.0009842849324
A29: 2016-04-14 | B29: 2082.889893 | C29: 2087.840088 | D29: 2078.129883 | E29: 2082.780029 | F29: 3765870000 | G29: 2082.780029 | H29: 0.0001729271777
A30: 2016-04-13 | B30: 2065.919922 | C30: 2083.179932 | D30: 2065.919922 | E30: 2082.419922 | F30: 4191830000 | G30: 2082.419922 | H30: 0.01004013702
A31: 2016-04-12 | B31: 2043.719971 | C31: 2065.050049 | D31: 2039.73999 | E31: 2061.719971 | F31: 4239740000 | G31: 2061.719971 | H31: 0.009662134044
A32: 2016-04-11 | B32: 2050.22998 | C32: 2062.929932 | D32: 2041.880005 | E32: 2041.98999 | F32: 3567840000 | G32: 2041.98999 | H32: -0.002739786123
A33: 2016-04-08 | B33: 2045.540039 | C33: 2060.629883 | D33: 2041.689941 | E33: 2047.599976 | F33: 3359530000 | G33: 2047.599976 | H33: 0.002786578206
A34: 2016-04-07 | B34: 2063.01001 | C34: 2063.01001 | D34: 2033.800049 | E34: 2041.910034 | F34: 3801250000 | G34: 2041.910034 | H34: -0.01197578656
A35: 2016-04-06 | B35: 2045.560059 | C35: 2067.330078 | D35: 2043.089966 | E35: 2066.659912 | F35: 3750800000 | G35: 2066.659912 | H35: 0.01050761919
A36: 2016-04-05 | B36: 2062.5 | C36: 2062.5 | D36: 2042.560059 | E36: 2045.170044 | F36: 4154920000 | G36: 2045.170044 | H36: -0.01014449245
A37: 2016-04-04 | B37: 2073.189941 | C37: 2074.02002 | D37: 2062.570068 | E37: 2066.129883 | F37: 3485710000 | G37: 2066.129883 | H37: -0.003208322112
A38: 2016-04-01 | B38: 2056.620117 | C38: 2075.070068 | D38: 2043.97998 | E38: 2072.780029 | F38: 3749990000 | G38: 2072.780029 | H38: 0.006330915098
A39: 2016-03-31 | B39: 2063.77002 | C39: 2067.919922 | D39: 2057.459961 | E39: 2059.73999 | F39: 3715280000 | G39: 2059.73999 | H39: -0.002039759248
A40: 2016-03-30 | B40: 2058.27002 | C40: 2072.209961 | D40: 2058.27002 | E40: 2063.949951 | F40: 3590310000 | G40: 2063.949951 | H40: 0.004350315062
A41: 2016-03-29 | B41: 2035.75 | C41: 2055.909912 | D41: 2028.310059 | E41: 2055.01001 | F41: 3822330000 | G41: 2055.01001 | H41: 0.008816651809
A42: 2016-03-28 | B42: 2037.890015 | C42: 2042.670044 | D42: 2031.959961 | E42: 2037.050049 | F42: 2809090000 | G42: 2037.050049 | H42: 0.0005452557699
A43: 2016-03-24 | B43: 2032.47998 | C43: 2036.040039 | D43: 2022.48999 | E43: 2035.939941 | F43: 3407720000 | G43: 2035.939941 | H43: -0.0003780705229
A44: 2016-03-23 | B44: 2048.550049 | C44: 2048.550049 | D44: 2034.859985 | E44: 2036.709961 | F44: 3639510000 | G44: 2036.709961 | H44: -0.006386031655
A45: 2016-03-22 | B45: 2048.639893 | C45: 2056.600098 | D45: 2040.569946 | E45: 2049.800049 | F45: 3418460000 | G45: 2049.800049 | H45: -0.0008773878505
A46: 2016-03-21 | B46: 2047.880005 | C46: 2053.909912 | D46: 2043.140015 | E46: 2051.600098 | F46: 3376600000 | G46: 2051.600098 | H46: 0.0009855774955
A47: 2016-03-18 | B47: 2041.160034 | C47: 2052.360107 | D47: 2041.160034 | E47: 2049.580078 | F47: 6503140000 | G47: 2049.580078 | H47: 0.004405643539
A48: 2016-03-17 | B48: 2026.900024 | C48: 2046.23999 | D48: 2022.160034 | E48: 2040.589966 | F48: 4530480000 | G48: 2040.589966 | H48: 0.006595236428
A49: 2016-03-16 | B49: 2014.23999 | C49: 2032.02002 | D49: 2010.040039 | E49: 2027.219971 | F49: 4057020000 | G49: 2027.219971 | H49: 0.005600351549
A50: 2016-03-15 | B50: 2015.27002 | C50: 2015.939941 | D50: 2005.22998 | E50: 2015.930054 | F50: 3560280000 | G50: 2015.930054 | H50: -0.001836941719
A51: 2016-03-14 | B51: 2019.27002 | C51: 2024.569946 | D51: 2012.050049 | E51: 2019.640015 | F51: 3487850000 | G51: 2019.640015 | H51: -0.001260972547
A52: 2016-03-11 | B52: 1994.709961 | C52: 2022.369995 | D52: 1994.709961 | E52: 2022.189941 | F52: 4078620000 | G52: 2022.189941 | H52: 0.01639550048
A53: 2016-03-10 | B53: 1990.969971 | C53: 2005.079956 | D53: 1969.25 | E53: 1989.569946 | F53: 4376790000 | G53: 1989.569946 | H53: 0.0001558046703
A54: 2016-03-09 | B54: 1981.439941 | C54: 1992.689941 | D54: 1979.839966 | E54: 1989.26001 | F54: 4038120000 | G54: 1989.26001 | H54: 0.005052393293
A55: 2016-03-08 | B55: 1996.880005 | C55: 1996.880005 | D55: 1977.430054 | E55: 1979.26001 | F55: 4641650000 | G55: 1979.26001 | H55: -0.01124010865
A56: 2016-03-07 | B56: 1996.109985 | C56: 2006.119995 | D56: 1989.380005 | E56: 2001.76001 | F56: 4968180000 | G56: 2001.76001 | H56: 0.0008850144295
A57: 2016-03-04 | B57: 1994.01001 | C57: 2009.130005 | D57: 1986.77002 | E57: 1999.98999 | F57: 6049930000 | G57: 1999.98999 | H57: 0.003305892405
A58: 2016-03-03 | B58: 1985.599976 | C58: 1993.689941 | D58: 1977.369995 | E58: 1993.400024 | F58: 5081700000 | G58: 1993.400024 | H58: 0.003498740553
A59: 2016-03-02 | B59: 1976.599976 | C59: 1986.51001 | D59: 1968.800049 | E59: 1986.449951 | F59: 4666610000 | G59: 1986.449951 | H59: 0.004094308438
A60: 2016-03-01 | B60: 1937.089966 | C60: 1978.349976 | D60: 1937.089966 | E60: 1978.349976 | F60: 4819750000 | G60: 1978.349976 | H60: 0.02386879226
A61: 2016-02-29 | B61: 1947.130005 | C61: 1958.27002 | D61: 1931.810059 | E61: 1932.22998 | F61: 4588180000 | G61: 1932.22998 | H61: -0.00812097667
A62: 2016-02-26 | B62: 1954.949951 | C62: 1962.959961 | D62: 1945.780029 | E62: 1948.050049 | F62: 4348510000 | G62: 1948.050049 | H62: -0.001870114306
A63: 2016-02-25 | B63: 1931.869995 | C63: 1951.829956 | D63: 1925.410034 | E63: 1951.699951 | F63: 4118210000 | G63: 1951.699951 | H63: 0.01134827518
A64: 2016-02-24 | B64: 1917.560059 | C64: 1932.079956 | D64: 1891 | E64: 1929.800049 | F64: 4317250000 | G64: 1929.800049 | H64: 0.004439786657
A65: 2016-02-23 | B65: 1942.380005 | C65: 1942.380005 | D65: 1919.439941 | E65: 1921.27002 | F65: 3890650000 | G65: 1921.27002 | H65: -0.01245437163
A66: 2016-02-22 | B66: 1924.439941 | C66: 1946.699951 | D66: 1924.439941 | E66: 1945.5 | F66: 4054710000 | G66: 1945.5 | H66: 0.01445419734
A67: 2016-02-19 | B67: 1916.73999 | C67: 1918.780029 | D67: 1902.170044 | E67: 1917.780029 | F67: 4142850000 | G67: 1917.780029 | H67: -2.603306922e-05
A68: 2016-02-18 | B68: 1927.569946 | C68: 1930 | D68: 1915.089966 | E68: 1917.829956 | F68: 4436490000 | G68: 1917.829956 | H68: -0.004665713586
A69: 2016-02-17 | B69: 1898.800049 | C69: 1930.680054 | D69: 1898.800049 | E69: 1926.819946 | F69: 5011540000 | G69: 1926.819946 | H69: 0.01648043909
A70: 2016-02-16 | B70: 1871.439941 | C70: 1895.77002 | D70: 1871.439941 | E70: 1895.579956 | F70: 4570670000 | G70: 1895.579956 | H70: 0.01651665425
A71: 2016-02-12 | B71: 1833.400024 | C71: 1864.780029 | D71: 1833.400024 | E71: 1864.780029 | F71: 4696920000 | G71: 1864.780029 | H71: 0.01951804943
A72: 2016-02-11 | B72: 1847 | C72: 1847 | D72: 1810.099976 | E72: 1829.079956 | F72: 5500800000 | G72: 1829.079956 | H72: -0.01230116163
A73: 2016-02-10 | B73: 1857.099976 | C73: 1881.599976 | D73: 1850.319946 | E73: 1851.859985 | F73: 4471170000 | G73: 1851.859985 | H73: -0.000188950501
A74: 2016-02-09 | B74: 1848.459961 | C74: 1868.25 | D74: 1834.939941 | E74: 1852.209961 | F74: 5183220000 | G74: 1852.209961 | H74: -0.0006636201005
A75: 2016-02-08 | B75: 1873.25 | C75: 1873.25 | D75: 1828.459961 | E75: 1853.439941 | F75: 5636460000 | G75: 1853.439941 | H75: =G75/G76-1 -> -0.01415393596
A76: 2016-02-05 | B76: 1913.069946 | C76: 1913.069946 | D76: 1872.650024 | E76: 1880.050049 | F76: 4929940000 | G76: 1880.050049 | H76: -0.01848124613
A77: 2016-02-04 | B77: 1911.670044 | C77: 1927.349976 | D77: 1900.52002 | E77: 1915.449951 | F77: 5193320000 | G77: 1915.449951 | H77: 0.001526732629
A78: 2016-02-03 | B78: 1907.069946 | C78: 1918.01001 | D78: 1872.22998 | E78: 1912.530029 | F78: 5172950000 | G78: 1912.530029 | H78: 0.004992038935
A79: 2016-02-02 | B79: 1935.26001 | C79: 1935.26001 | D79: 1897.290039 | E79: 1903.030029 | F79: 4463190000 | G79: 1903.030029 | H79: -0.01874309104
A80: 2016-02-01 | B80: 1936.939941 | C80: 1947.199951 | D80: 1920.300049 | E80: 1939.380005 | F80: 4322530000 | G80: 1939.380005 | H80: -0.000443236406
A81: 2016-01-29 | B81: 1894 | C81: 1940.23999 | D81: 1894 | E81: 1940.23999 | F81: 5497570000 | G81: 1940.23999 | H81: 0.02476021748
A82: 2016-01-28 | B82: 1885.219971 | C82: 1902.959961 | D82: 1873.650024 | E82: 1893.359985 | F82: 4693010000 | G82: 1893.359985 | H82: 0.005528577111
A83: 2016-01-27 | B83: 1902.52002 | C83: 1916.98999 | D83: 1872.699951 | E83: 1882.949951 | F83: 4754040000 | G83: 1882.949951 | H83: -0.01086348395
A84: 2016-01-26 | B84: 1878.790039 | C84: 1906.72998 | D84: 1878.790039 | E84: 1903.630005 | F84: 4357940000 | G84: 1903.630005 | H84: 0.01414433568
A85: 2016-01-25 | B85: 1906.280029 | C85: 1906.280029 | D85: 1875.969971 | E85: 1877.079956 | F85: 4401380000 | G85: 1877.079956 | H85: -0.01563798187
A86: 2016-01-22 | B86: 1877.400024 | C86: 1908.849976 | D86: 1877.400024 | E86: 1906.900024 | F86: 4901760000 | G86: 1906.900024 | H86: 0.02028370093
A87: 2016-01-21 | B87: 1861.459961 | C87: 1889.849976 | D87: 1848.97998 | E87: 1868.98999 | F87: 5078810000 | G87: 1868.98999 | H87: 0.005195438265
A88: 2016-01-20 | B88: 1876.180054 | C88: 1876.180054 | D88: 1812.290039 | E88: 1859.329956 | F88: 6416070000 | G88: 1859.329956 | H88: -0.01169385515
A89: 2016-01-19 | B89: 1888.660034 | C89: 1901.439941 | D89: 1864.599976 | E89: 1881.329956 | F89: 4928350000 | G89: 1881.329956 | H89: 0.0005318215544
A90: 2016-01-15 | B90: 1916.680054 | C90: 1916.680054 | D90: 1857.829956 | E90: 1880.329956 | F90: 5468460000 | G90: 1880.329956 | H90: -0.02159909812
A91: 2016-01-14 | B91: 1891.680054 | C91: 1934.469971 | D91: 1878.930054 | E91: 1921.839966 | F91: 5241110000 | G91: 1921.839966 | H91: 0.01669590564
A92: 2016-01-13 | B92: 1940.339966 | C92: 1950.329956 | D92: 1886.410034 | E92: 1890.280029 | F92: 5087030000 | G92: 1890.280029 | H92: -0.0249654526
A93: 2016-01-12 | B93: 1927.829956 | C93: 1947.380005 | D93: 1914.349976 | E93: 1938.680054 | F93: 4887260000 | G93: 1938.680054 | H93: 0.007802798638
A94: 2016-01-11 | B94: 1926.119995 | C94: 1935.650024 | D94: 1901.099976 | E94: 1923.670044 | F94: 4607290000 | G94: 1923.670044 | H94: 0.0008532723086
A95: 2016-01-08 | B95: 1985.319946 | C95: 1985.319946 | D95: 1918.459961 | E95: 1922.030029 | F95: 4664940000 | G95: 1922.030029 | H95: -0.01083837463
A96: 2016-01-07 | B96: 1985.319946 | C96: 1985.319946 | D96: 1938.829956 | E96: 1943.089966 | F96: 5076590000 | G96: 1943.089966 | H96: -0.02370044304
A97: 2016-01-06 | B97: 2011.709961 | C97: 2011.709961 | D97: 1979.050049 | E97: 1990.26001 | F97: 4336660000 | G97: 1990.26001 | H97: -0.01311539662
A98: 2016-01-05 | B98: 2013.780029 | C98: 2021.939941 | D98: 2004.170044 | E98: 2016.709961 | F98: 3706620000 | G98: 2016.709961 | H98: 0.002012226075
A99: 2016-01-04 | B99: 2038.199951 | C99: 2038.199951 | D99: 1989.680054 | E99: 2012.660034 | F99: 4304880000 | G99: 2012.660034 | H99: -0.01530373098
A100: 2015-12-31 | B100: 2060.590088 | C100: 2062.540039 | D100: 2043.619995 | E100: 2043.939941 | F100: 2655330000 | G100: 2043.939941 | H100: -0.00941191309
A101: 2015-12-30 | B101: 2077.340088 | C101: 2077.340088 | D101: 2061.969971 | E101: 2063.360107 | F101: 2367430000 | G101: 2063.360107 | H101: -0.007217228597
A102: 2015-12-29 | B102: 2060.540039 | C102: 2081.560059 | D102: 2060.540039 | E102: 2078.360107 | F102: 2542000000 | G102: 2078.360107 | H102: 0.0106297627
A103: 2015-12-28 | B103: 2057.77002 | C103: 2057.77002 | D103: 2044.199951 | E103: 2056.5 | F103: 2492510000 | G103: 2056.5 | H103: -0.002178559829
A104: 2015-12-24 | B104: 2063.52002 | C104: 2067.360107 | D104: 2058.72998 | E104: 2060.98999 | F104: 1411860000 | G104: 2060.98999 | H104: -0.001598636305
A105: 2015-12-23 | B105: 2042.199951 | C105: 2064.72998 | D105: 2042.199951 | E105: 2064.290039 | F105: 3484090000 | G105: 2064.290039 | H105: 0.01241806812
A106: 2015-12-22 | B106: 2023.150024 | C106: 2042.73999 | D106: 2020.48999 | E106: 2038.969971 | F106: 3520860000 | G106: 2038.969971 | H106: 0.008816736407
A107: 2015-12-21 | B107: 2010.27002 | C107: 2022.900024 | D107: 2005.930054 | E107: 2021.150024 | F107: 3760280000 | G107: 2021.150024 | H107: 0.007778402243
A108: 2015-12-18 | B108: 2040.810059 | C108: 2040.810059 | D108: 2005.329956 | E108: 2005.550049 | F108: 6683070000 | G108: 2005.550049 | H108: -0.01779722009
A109: 2015-12-17 | B109: 2073.76001 | C109: 2076.370117 | D109: 2041.660034 | E109: 2041.890015 | F109: 4327390000 | G109: 2041.890015 | H109: -0.01504052057
A110: 2015-12-16 | B110: 2046.5 | C110: 2076.719971 | D110: 2042.430054 | E110: 2073.070068 | F110: 4635450000 | G110: 2073.070068 | H110: 0.01451496934
A111: 2015-12-15 | B111: 2025.550049 | C111: 2053.870117 | D111: 2025.550049 | E111: 2043.410034 | F111: 4353540000 | G111: 2043.410034 | H111: 0.0106185612
A112: 2015-12-14 | B112: 2013.369995 | C112: 2022.920044 | D112: 1993.26001 | E112: 2021.939941 | F112: 4612440000 | G112: 2021.939941 | H112: 0.004755559874
A113: 2015-12-11 | B113: 2047.27002 | C113: 2047.27002 | D113: 2008.800049 | E113: 2012.369995 | F113: 4301060000 | G113: 2012.369995 | H113: -0.01942276713
A114: 2015-12-10 | B114: 2047.930054 | C114: 2067.649902 | D114: 2045.670044 | E114: 2052.22998 | F114: 3715150000 | G114: 2052.22998 | H114: 0.002251386982
A115: 2015-12-09 | B115: 2061.169922 | C115: 2080.330078 | D115: 2036.530029 | E115: 2047.619995 | F115: 4385250000 | G115: 2047.619995 | H115: -0.007738985127
A116: 2015-12-08 | B116: 2073.389893 | C116: 2073.850098 | D116: 2052.320068 | E116: 2063.590088 | F116: 4173570000 | G116: 2063.590088 | H116: -0.006489901428
A117: 2015-12-07 | B117: 2090.419922 | C117: 2090.419922 | D117: 2066.780029 | E117: 2077.070068 | F117: 4043820000 | G117: 2077.070068 | H117: -0.006989502944
A118: 2015-12-04 | B118: 2051.23999 | C118: 2093.840088 | D118: 2051.23999 | E118: 2091.689941 | F118: 4214910000 | G118: 2091.689941 | H118: 0.02052566895
A119: 2015-12-03 | B119: 2080.709961 | C119: 2085 | D119: 2042.349976 | E119: 2049.620117 | F119: 4306490000 | G119: 2049.620117 | H119: -0.01437352687
A120: 2015-12-02 | B120: 2101.709961 | C120: 2104.27002 | D120: 2077.110107 | E120: 2079.51001 | F120: 3950640000 | G120: 2079.51001 | H120: -0.01099569315
A121: 2015-12-01 | B121: 2082.929932 | C121: 2103.370117 | D121: 2082.929932 | E121: 2102.629883 | F121: 3712120000 | G121: 2102.629883 | H121: 0.01068057351
A122: 2015-11-30 | B122: 2090.949951 | C122: 2093.810059 | D122: 2080.409912 | E122: 2080.409912 | F122: 4245030000 | G122: 2080.409912 | H122: -0.004640997126
A123: 2015-11-27 | B123: 2088.820068 | C123: 2093.290039 | D123: 2084.129883 | E123: 2090.110107 | F123: 1466840000 | G123: 2090.110107 | H123: 0.0005936175686
A124: 2015-11-25 | B124: 2089.300049 | C124: 2093 | D124: 2086.300049 | E124: 2088.870117 | F124: 2852940000 | G124: 2088.870117 | H124: -0.0001291325683
A125: 2015-11-24 | B125: 2084.419922 | C125: 2094.120117 | D125: 2070.290039 | E125: 2089.139893 | F125: 3884930000 | G125: 2089.139893 | H125: 0.001221996124
A126: 2015-11-23 | B126: 2089.409912 | C126: 2095.610107 | D126: 2081.389893 | E126: 2086.590088 | F126: 3587980000 | G126: 2086.590088 | H126: -0.00123486078
A127: 2015-11-20 | B127: 2082.820068 | C127: 2097.060059 | D127: 2082.820068 | E127: 2089.169922 | F127: 3929600000 | G127: 2089.169922 | H127: 0.003810195863
A128: 2015-11-19 | B128: 2083.699951 | C128: 2086.73999 | D128: 2078.76001 | E128: 2081.23999 | F128: 3628110000 | G128: 2081.23999 | H128: -0.001123109222
A129: 2015-11-18 | B129: 2051.98999 | C129: 2085.310059 | D129: 2051.98999 | E129: 2083.580078 | F129: 3926390000 | G129: 2083.580078 | H129: 0.01616245194
A130: 2015-11-17 | B130: 2053.669922 | C130: 2066.689941 | D130: 2045.900024 | E130: 2050.439941 | F130: 4427350000 | G130: 2050.439941 | H130: -0.001339379248
A131: 2015-11-16 | B131: 2022.079956 | C131: 2053.219971 | D131: 2019.390015 | E131: 2053.189941 | F131: 3741240000 | G131: 2053.189941 | H131: 0.0149032651
A132: 2015-11-13 | B132: 2044.640015 | C132: 2044.640015 | D132: 2022.02002 | E132: 2023.040039 | F132: 4278750000 | G132: 2023.040039 | H132: -0.01120736488
A133: 2015-11-12 | B133: 2072.290039 | C133: 2072.290039 | D133: 2045.660034 | E133: 2045.969971 | F133: 4016370000 | G133: 2045.969971 | H133: -0.01399037542
A134: 2015-11-11 | B134: 2083.409912 | C134: 2086.939941 | D134: 2074.850098 | E134: 2075 | F134: 3692410000 | G134: 2075 | H134: -0.003228085955
A135: 2015-11-10 | B135: 2077.189941 | C135: 2083.669922 | D135: 2069.909912 | E135: 2081.719971 | F135: 3821440000 | G135: 2081.719971 | H135: 0.001510595157
A136: 2015-11-09 | B136: 2096.560059 | C136: 2096.560059 | D136: 2068.23999 | E136: 2078.580078 | F136: 3882350000 | G136: 2078.580078 | H136: -0.009822729364
A137: 2015-11-06 | B137: 2098.600098 | C137: 2101.909912 | D137: 2083.73999 | E137: 2099.199951 | F137: 4369020000 | G137: 2099.199951 | H137: -0.0003476215986
A138: 2015-11-05 | B138: 2101.679932 | C138: 2108.780029 | D138: 2090.409912 | E138: 2099.929932 | F138: 4051890000 | G138: 2099.929932 | H138: -0.001132148414
A139: 2015-11-04 | B139: 2110.600098 | C139: 2114.590088 | D139: 2096.97998 | E139: 2102.310059 | F139: 4078870000 | G139: 2102.310059 | H139: =G139/G140-1 -> -0.003545367009
A140: 2015-11-03 | B140: 2102.629883 | C140: 2116.47998 | D140: 2097.51001 | E140: 2109.790039 | F140: 4272060000 | G140: 2109.790039 | H140: 0.002728067235
A141: 2015-11-02 | B141: 2080.76001 | C141: 2106.199951 | D141: 2080.76001 | E141: 2104.050049 | F141: 3760020000 | G141: 2104.050049 | H141: 0.01187381729
A142: 2015-10-30 | B142: 2090 | C142: 2094.320068 | D142: 2079.340088 | E142: 2079.360107 | F142: 4256200000 | G142: 2079.360107 | H142: -0.004809877153
A143: 2015-10-29 | B143: 2088.350098 | C143: 2092.52002 | D143: 2082.629883 | E143: 2089.409912 | F143: 4008940000 | G143: 2089.409912 | H143: -0.0004497744186
A144: 2015-10-28 | B144: 2066.47998 | C144: 2090.350098 | D144: 2063.110107 | E144: 2090.350098 | F144: 4698110000 | G144: 2090.350098 | H144: 0.01184003324
A145: 2015-10-27 | B145: 2068.75 | C145: 2070.370117 | D145: 2058.840088 | E145: 2065.889893 | F145: 4216880000 | G145: 2065.889893 | H145: -0.002554118509
A146: 2015-10-26 | B146: 2075.080078 | C146: 2075.139893 | D146: 2066.530029 | E146: 2071.179932 | F146: 3385800000 | G146: 2071.179932 | H146: -0.001913100348
A147: 2015-10-23 | B147: 2058.189941 | C147: 2079.73999 | D147: 2058.189941 | E147: 2075.149902 | F147: 4108460000 | G147: 2075.149902 | H147: 0.01103034426
A148: 2015-10-22 | B148: 2021.880005 | C148: 2055.199951 | D148: 2021.880005 | E148: 2052.51001 | F148: 4430850000 | G148: 2052.51001 | H148: 0.01662757188
A149: 2015-10-21 | B149: 2033.469971 | C149: 2037.969971 | D149: 2017.219971 | E149: 2018.939941 | F149: 3627790000 | G149: 2018.939941 | H149: -0.005825415425
A150: 2015-10-20 | B150: 2033.130005 | C150: 2039.119995 | D150: 2026.609985 | E150: 2030.77002 | F150: 3331500000 | G150: 2030.77002 | H150: -0.001421090031
A151: 2015-10-19 | B151: 2031.72998 | C151: 2034.449951 | D151: 2022.310059 | E151: 2033.660034 | F151: 3287320000 | G151: 2033.660034 | H151: 0.0002705456193
A152: 2015-10-16 | B152: 2024.369995 | C152: 2033.540039 | D152: 2020.459961 | E152: 2033.109985 | F152: 3595430000 | G152: 2033.109985 | H152: 0.004570474276
A153: 2015-10-15 | B153: 1996.469971 | C153: 2024.150024 | D153: 1996.469971 | E153: 2023.859985 | F153: 3746290000 | G153: 2023.859985 | H153: 0.01485277356
A154: 2015-10-14 | B154: 2003.660034 | C154: 2009.560059 | D154: 1990.72998 | E154: 1994.23999 | F154: 3644590000 | G154: 1994.23999 | H154: -0.004716274113
A155: 2015-10-13 | B155: 2015 | C155: 2022.339966 | D155: 2001.780029 | E155: 2003.689941 | F155: 3401920000 | G155: 2003.689941 | H155: -0.00682542418
A156: 2015-10-12 | B156: 2015.650024 | C156: 2018.660034 | D156: 2010.550049 | E156: 2017.459961 | F156: 2893250000 | G156: 2017.459961 | H156: 0.001275477064
A157: 2015-10-09 | B157: 2013.72998 | C157: 2020.130005 | D157: 2007.609985 | E157: 2014.890015 | F157: 3706900000 | G157: 2014.890015 | H157: 0.0007251113577
A158: 2015-10-08 | B158: 1994.01001 | C158: 2016.5 | D158: 1987.530029 | E158: 2013.430054 | F158: 3939140000 | G158: 2013.430054 | H158: 0.008818435632
A159: 2015-10-07 | B159: 1982.339966 | C159: 1999.310059 | D159: 1976.439941 | E159: 1995.829956 | F159: 4666470000 | G159: 1995.829956 | H159: 0.008035633584
A160: 2015-10-06 | B160: 1986.630005 | C160: 1991.619995 | D160: 1971.98999 | E160: 1979.920044 | F160: 4202400000 | G160: 1979.920044 | H160: -0.003588236242
A161: 2015-10-05 | B161: 1954.329956 | C161: 1989.170044 | D161: 1954.329956 | E161: 1987.050049 | F161: 4334490000 | G161: 1987.050049 | H161: 0.01828984107
A162: 2015-10-02 | B162: 1921.77002 | C162: 1951.359985 | D162: 1893.699951 | E162: 1951.359985 | F162: 4378570000 | G162: 1951.359985 | H162: 0.01431528925
A163: 2015-10-01 | B163: 1919.650024 | C163: 1927.209961 | D163: 1900.699951 | E163: 1923.819946 | F163: 3983600000 | G163: 1923.819946 | H163: 0.001973884232
A164: 2015-09-30 | B164: 1887.140015 | C164: 1920.530029 | D164: 1887.140015 | E164: 1920.030029 | F164: 4525070000 | G164: 1920.030029 | H164: 0.01907555565
A165: 2015-09-29 | B165: 1881.900024 | C165: 1899.47998 | D165: 1871.910034 | E165: 1884.089966 | F165: 4132390000 | G165: 1884.089966 | H165: 0.001232853099
A166: 2015-09-28 | B166: 1929.180054 | C166: 1929.180054 | D166: 1879.209961 | E166: 1881.77002 | F166: 4326660000 | G166: 1881.77002 | H166: -0.02566609032
A167: 2015-09-25 | B167: 1935.930054 | C167: 1952.890015 | D167: 1921.5 | E167: 1931.339966 | F167: 3721870000 | G167: 1931.339966 | H167: -0.0004657930716
A168: 2015-09-24 | B168: 1934.810059 | C168: 1937.170044 | D168: 1908.920044 | E168: 1932.23999 | F168: 4091530000 | G168: 1932.23999 | H168: -0.003362984571
A169: 2015-09-23 | B169: 1943.23999 | C169: 1949.52002 | D169: 1932.569946 | E169: 1938.76001 | F169: 3190530000 | G169: 1938.76001 | H169: -0.002048642649
A170: 2015-09-22 | B170: 1961.390015 | C170: 1961.390015 | D170: 1929.219971 | E170: 1942.73999 | F170: 3808260000 | G170: 1942.73999 | H170: -0.01231842954
A171: 2015-09-21 | B171: 1960.839966 | C171: 1979.640015 | D171: 1955.800049 | E171: 1966.969971 | F171: 3269350000 | G171: 1966.969971 | H171: 0.004565783909
A172: 2015-09-18 | B172: 1989.660034 | C172: 1989.660034 | D172: 1953.449951 | E172: 1958.030029 | F172: 6021240000 | G172: 1958.030029 | H172: -0.01616416581
A173: 2015-09-17 | B173: 1995.329956 | C173: 2020.859985 | D173: 1986.72998 | E173: 1990.199951 | F173: 4183790000 | G173: 1990.199951 | H173: -0.002561059609
A174: 2015-09-16 | B174: 1978.02002 | C174: 1997.26001 | D174: 1977.930054 | E174: 1995.310059 | F174: 3630680000 | G174: 1995.310059 | H174: 0.008705414463
A175: 2015-09-15 | B175: 1955.099976 | C175: 1983.189941 | D175: 1954.300049 | E175: 1978.089966 | F175: 3239860000 | G175: 1978.089966 | H175: 0.01283131167
A176: 2015-09-14 | B176: 1963.060059 | C176: 1963.060059 | D176: 1948.27002 | E176: 1953.030029 | F176: 3000200000 | G176: 1953.030029 | H176: -0.004089655949
A177: 2015-09-11 | B177: 1951.449951 | C177: 1961.050049 | D177: 1939.189941 | E177: 1961.050049 | F177: 3218590000 | G177: 1961.050049 | H177: 0.004487043331
A178: 2015-09-10 | B178: 1941.589966 | C178: 1965.290039 | D178: 1937.189941 | E178: 1952.290039 | F178: 3626320000 | G178: 1952.290039 | H178: 0.005277955034
A179: 2015-09-09 | B179: 1971.449951 | C179: 1988.630005 | D179: 1937.880005 | E179: 1942.040039 | F179: 3652120000 | G179: 1942.040039 | H179: -0.01389756045
A180: 2015-09-08 | B180: 1927.300049 | C180: 1970.420044 | D180: 1927.300049 | E180: 1969.410034 | F180: 3548650000 | G180: 1969.410034 | H180: 0.02508305333
A181: 2015-09-04 | B181: 1947.76001 | C181: 1947.76001 | D181: 1911.209961 | E181: 1921.219971 | F181: 3167090000 | G181: 1921.219971 | H181: -0.01532959563
A182: 2015-09-03 | B182: 1950.790039 | C182: 1975.01001 | D182: 1944.719971 | E182: 1951.130005 | F182: 3520700000 | G182: 1951.130005 | H182: 0.001164793786
A183: 2015-09-02 | B183: 1916.52002 | C183: 1948.910034 | D183: 1916.52002 | E183: 1948.859985 | F183: 3742620000 | G183: 1948.859985 | H183: 0.0182929746
A184: 2015-09-01 | B184: 1970.089966 | C184: 1970.089966 | D184: 1903.069946 | E184: 1913.849976 | F184: 4371850000 | G184: 1913.849976 | H184: -0.02957644657
A185: 2015-08-31 | B185: 1986.72998 | C185: 1986.72998 | D185: 1965.97998 | E185: 1972.180054 | F185: 3915100000 | G185: 1972.180054 | H185: -0.008391670165
A186: 2015-08-28 | B186: 1986.060059 | C186: 1993.47998 | D186: 1975.189941 | E186: 1988.869995 | F186: 3949080000 | G186: 1988.869995 | H186: 0.0006087363932
A187: 2015-08-27 | B187: 1942.77002 | C187: 1989.599976 | D187: 1942.77002 | E187: 1987.660034 | F187: 5006390000 | G187: 1987.660034 | H187: 0.0242977484
A188: 2015-08-26 | B188: 1872.75 | C188: 1943.089966 | D188: 1872.75 | E188: 1940.51001 | F188: 5338250000 | G188: 1940.51001 | H188: 0.0390338591
A189: 2015-08-25 | B189: 1898.079956 | C189: 1948.040039 | D189: 1867.079956 | E189: 1867.609985 | F189: 5183560000 | G189: 1867.609985 | H189: -0.0135219952
A190: 2015-08-24 | B190: 1965.150024 | C190: 1965.150024 | D190: 1867.01001 | E190: 1893.209961 | F190: 6612690000 | G190: 1893.209961 | H190: -0.03941369301
A191: 2015-08-21 | B191: 2034.079956 | C191: 2034.079956 | D191: 1970.890015 | E191: 1970.890015 | F191: 5018240000 | G191: 1970.890015 | H191: -0.03185096532
A192: 2015-08-20 | B192: 2076.610107 | C192: 2076.610107 | D192: 2035.72998 | E192: 2035.72998 | F192: 3922470000 | G192: 2035.72998 | H192: -0.0211001701
A193: 2015-08-19 | B193: 2095.689941 | C193: 2096.169922 | D193: 2070.530029 | E193: 2079.610107 | F193: 3512920000 | G193: 2079.610107 | H193: -0.008254876506
A194: 2015-08-18 | B194: 2101.98999 | C194: 2103.469971 | D194: 2094.139893 | E194: 2096.919922 | F194: 2949990000 | G194: 2096.919922 | H194: -0.002625529934
A195: 2015-08-17 | B195: 2089.699951 | C195: 2102.870117 | D195: 2079.300049 | E195: 2102.439941 | F195: 2867690000 | G195: 2102.439941 | H195: 0.005211424021
A196: 2015-08-14 | B196: 2083.149902 | C196: 2092.449951 | D196: 2080.610107 | E196: 2091.540039 | F196: 2795590000 | G196: 2091.540039 | H196: 0.003911963876
A197: 2015-08-13 | B197: 2086.189941 | C197: 2092.929932 | D197: 2078.26001 | E197: 2083.389893 | F197: 3221300000 | G197: 2083.389893 | H197: -0.001275211974
A198: 2015-08-12 | B198: 2081.100098 | C198: 2089.060059 | D198: 2052.090088 | E198: 2086.050049 | F198: 4269130000 | G198: 2086.050049 | H198: 0.0009500549096
A199: 2015-08-11 | B199: 2102.659912 | C199: 2102.659912 | D199: 2076.48999 | E199: 2084.070068 | F199: 3708880000 | G199: 2084.070068 | H199: -0.009557102838
A200: 2015-08-10 | B200: 2080.97998 | C200: 2105.350098 | D200: 2080.97998 | E200: 2104.179932 | F200: 3514460000 | G200: 2104.179932 | H200: 0.01280816681
A201: 2015-08-07 | B201: 2082.610107 | C201: 2082.610107 | D201: 2067.909912 | E201: 2077.570068 | F201: 3602320000 | G201: 2077.570068 | H201: -0.002874882811
A202: 2015-08-06 | B202: 2100.75 | C202: 2103.320068 | D202: 2075.530029 | E202: 2083.560059 | F202: 4246570000 | G202: 2083.560059 | H202: -0.007752985141
A203: 2015-08-05 | B203: 2095.27002 | C203: 2112.659912 | D203: 2095.27002 | E203: 2099.840088 | F203: 3968680000 | G203: 2099.840088 | H203: =G203/G204-1 -> 0.003114678973
... 6261 more rows

Sheet Benchmarkvergleich
A1: Historische Kursdaten - Benchmarkvergleich
B3: Unternehmen 1 | C3: Unternehmen 2
A4: Ticker: | B4: NASDAQ:AAPL | C4: NASDAQ:MSFT
A5: Enddatum (heute): | B5: =TODAY() -> 2017-05-25
A6: Jahre: | B6: 5
A7: Startdatum: | B7: =DATE(YEAR(B5)-B6,MONTH(B5),DAY(B5)) -> 2012-05-25 | D7: Tickersuche:
A9: Date | B9: Close | C9: Close | D9: Kursindex | E9: Benchmark-index
A10: 2017-05-24 | B10: 153.34 | C10: 68.77 | D10: =IF(B10="",0,IF(D11=0,100,D11/B11*B10)) -> 190.8875887 | E10: =IF(C10="",0,IF(E11=0,100,E11/C11*C10)) -> 236.6483138
A11: 2017-05-23 | B11: 153.8 | C11: 68.68 | D11: =IF(B11="",0,IF(D12=0,100,D12/B12*B11)) -> 191.4602266 | E11: 236.3386098
A12: 2017-05-22 | B12: 153.99 | C12: 68.45 | D12: 191.6967509 | E12: 235.5471438
A13: 2017-05-19 | B13: 153.06 | C13: 67.69 | D13: 190.5390265 | E13: 232.9318651
A14: 2017-05-18 | B14: 152.54 | C14: 67.71 | D14: =IF(B14="",0,IF(D15=0,100,D15/B15*B14)) -> 189.8916968 | E14: =IF(C14="",0,IF(E15=0,100,E15/C15*C14)) -> 233.0006882
A15: 2017-05-17 | B15: 150.25 | C15: 67.48 | D15: 187.0409561 | E15: 232.2092223
A16: 2017-05-16 | B16: 155.47 | C16: 69.41 | D16: 193.539151 | E16: 238.8506538
A17: 2017-05-15 | B17: 155.7 | C17: 68.43 | D17: 193.8254699 | E17: 235.4783207
A18: 2017-05-12 | B18: 156.1 | C18: 68.38 | D18: 194.3234159 | E18: 235.3062629
A19: 2017-05-11 | B19: 153.95 | C19: 68.46 | D19: 191.6469563 | E19: 235.5815554
A20: 2017-05-10 | B20: 153.26 | C20: 69.31 | D20: =IF(B20="",0,IF(D21=0,100,D21/B21*B20)) -> 190.7879995 | E20: =IF(C20="",0,IF(E21=0,100,E21/C21*C20)) -> 238.5065382
A21: 2017-05-09 | B21: 153.99 | C21: 69.04 | D21: 191.6967509 | E21: 237.577426
A22: 2017-05-08 | B22: 153.01 | C22: 68.94 | D22: 190.4767833 | E22: 237.2333104
A23: 2017-05-05 | B23: 148.96 | C23: 69 | D23: 185.4350803 | E23: 237.4397798
A24: 2017-05-04 | B24: 146.53 | C24: 68.81 | D24: 182.4100585 | E24: 236.7859601
A25: 2017-05-03 | B25: 147.06 | C25: 69.08 | D25: 183.0698369 | E25: 237.7150723 | H25: API URL:
A26: 2017-05-02 | B26: 147.51 | C26: 69.3 | D26: 183.6300261 | E26: 238.4721266 | H26: http://www.google.com/finance/historical?q=NASDAQ:AAPL&startdate=May+25%2C+2012&enddate=May+25%2C+2017&output=csv
A27: 2017-05-01 | B27: 146.58 | C27: 69.41 | D27: 182.4723018 | E27: 238.8506538
A28: 2017-04-28 | B28: 143.65 | C28: 68.46 | D28: 178.8248475 | E28: 235.5815554
A29: 2017-04-27 | B29: 143.79 | C29: 68.27 | D29: 178.9991286 | E29: 234.9277357
A30: 2017-04-26 | B30: 143.68 | C30: 67.83 | D30: 178.8621935 | E30: 233.413627
A31: 2017-04-25 | B31: 144.53 | C31: 67.92 | D31: 179.9203286 | E31: 233.723331
A32: 2017-04-24 | B32: 143.64 | C32: 67.53 | D32: 178.8123989 | E32: 232.3812801
A33: 2017-04-21 | B33: 142.27 | C33: 66.4 | D33: 177.1069339 | E33: 228.4927736
A34: 2017-04-20 | B34: 142.44 | C34: 65.5 | D34: =IF(B34="",0,IF(D35=0,100,D35/B35*B34)) -> 177.3185609 | E34: =IF(C34="",0,IF(E35=0,100,E35/C35*C34)) -> 225.395733
A35: 2017-04-19 | B35: 140.68 | C35: 65.04 | D35: 175.1275987 | E35: 223.8128011
A36: 2017-04-18 | B36: 141.2 | C36: 65.39 | D36: 175.7749284 | E36: 225.0172058
A37: 2017-04-17 | B37: 141.83 | C37: 65.48 | D37: 176.5591933 | E37: 225.3269098
A38: 2017-04-13 | B38: 141.05 | C38: 64.95 | D38: 175.5881987 | E38: 223.503097
A39: 2017-04-12 | B39: 141.8 | C39: 65.23 | D39: 176.5218474 | E39: 224.4666208
A40: 2017-04-11 | B40: 141.63 | C40: 65.48 | D40: 176.3102203 | E40: 225.3269098
A41: 2017-04-10 | B41: 143.17 | C41: 65.53 | D41: 178.2273123 | E41: 225.4989677
A42: 2017-04-07 | B42: 143.34 | C42: 65.68 | D42: 178.4389394 | E42: 226.0151411
A43: 2017-04-06 | B43: 143.66 | C43: 65.73 | D43: 178.8372962 | E43: 226.1871989
A44: 2017-04-05 | B44: 144.02 | C44: 65.56 | D44: 179.2854475 | E44: 225.6022023
A45: 2017-04-04 | B45: 144.77 | C45: 65.73 | D45: 180.2190962 | E45: 226.1871989
A46: 2017-04-03 | B46: 143.7 | C46: 65.55 | D46: 178.8870908 | E46: 225.5677908
A47: 2017-03-31 | B47: 143.66 | C47: 65.86 | D47: 178.8372962 | E47: 226.6345492
A48: 2017-03-30 | B48: 143.93 | C48: 65.71 | D48: 179.1734097 | E48: 226.1183758
A49: 2017-03-29 | B49: 144.12 | C49: 65.47 | D49: 179.409934 | E49: 225.2924983
A50: 2017-03-28 | B50: 143.8 | C50: 65.29 | D50: 179.0115772 | E50: 224.6730902
A51: 2017-03-27 | B51: 140.88 | C51: 65.1 | D51: 175.3765716 | E51: 224.0192705
A52: 2017-03-24 | B52: 140.64 | C52: 64.98 | D52: 175.0778041 | E52: 223.6063317
A53: 2017-03-23 | B53: 140.92 | C53: 64.87 | D53: 175.4263662 | E53: 223.2278045
A54: 2017-03-22 | B54: 141.42 | C54: 65.03 | D54: 176.0487987 | E54: 223.7783895
A55: 2017-03-21 | B55: 139.84 | C55: 64.21 | D55: 174.0819121 | E55: 220.9566414
A56: 2017-03-20 | B56: 141.46 | C56: 64.93 | D56: 176.0985933 | E56: 223.4342739
A57: 2017-03-17 | B57: 139.99 | C57: 64.87 | D57: 174.2686419 | E57: 223.2278045
A58: 2017-03-16 | B58: 140.69 | C58: 64.64 | D58: 175.1400473 | E58: 222.4363386
A59: 2017-03-15 | B59: 140.46 | C59: 64.75 | D59: 174.8537284 | E59: 222.8148658
A60: 2017-03-14 | B60: 138.99 | C60: 64.41 | D60: 173.0237769 | E60: 221.6448727
A61: 2017-03-13 | B61: 139.2 | C61: 64.71 | D61: 173.2851986 | E61: 222.6772195
A62: 2017-03-10 | B62: 139.14 | C62: 64.93 | D62: 173.2105067 | E62: 223.4342739
A63: 2017-03-09 | B63: 138.68 | C63: 64.73 | D63: 172.6378688 | E63: 222.7460427
A64: 2017-03-08 | B64: 139 | C64: 64.99 | D64: 173.0362256 | E64: 223.6407433
A65: 2017-03-07 | B65: 139.52 | C65: 64.4 | D65: 173.6835553 | E65: 221.6104611
A66: 2017-03-06 | B66: 139.34 | C66: 64.27 | D66: 173.4594796 | E66: 221.1631108
A67: 2017-03-03 | B67: 139.78 | C67: 64.25 | D67: 174.0072202 | E67: 221.0942877
A68: 2017-03-02 | B68: 138.96 | C68: 64.01 | D68: 172.986431 | E68: 220.2684102
A69: 2017-03-01 | B69: 139.79 | C69: 64.94 | D69: 174.0196689 | E69: 223.4686855
A70: 2017-02-28 | B70: 136.99 | C70: 63.98 | D70: 170.5340471 | E70: 220.1651755
A71: 2017-02-27 | B71: 136.93 | C71: 64.23 | D71: 170.4593552 | E71: 221.0254646
A72: 2017-02-24 | B72: 136.66 | C72: 64.62 | D72: 170.1232416 | E72: 222.3675155
A73: 2017-02-23 | B73: 136.53 | C73: 64.62 | D73: 169.9614092 | E73: 222.3675155
A74: 2017-02-22 | B74: 137.11 | C74: 64.36 | D74: 170.6834308 | E74: 221.4728149
A75: 2017-02-21 | B75: 136.7 | C75: 64.49 | D75: 170.1730362 | E75: 221.9201652
A76: 2017-02-17 | B76: 135.72 | C76: 64.62 | D76: 168.9530686 | E76: 222.3675155
A77: 2017-02-16 | B77: 135.34 | C77: 64.52 | D77: 168.4800199 | E77: 222.0233999
A78: 2017-02-15 | B78: 135.51 | C78: 64.53 | D78: 168.691647 | E78: 222.0578114
A79: 2017-02-14 | B79: 135.02 | C79: 64.57 | D79: 168.0816631 | E79: 222.1954577
A80: 2017-02-13 | B80: 133.29 | C80: 64.72 | D80: 165.9280468 | E80: 222.7116311
A81: 2017-02-10 | B81: 132.12 | C81: 64 | D81: 164.4715548 | E81: 220.2339986
A82: 2017-02-09 | B82: 132.42 | C82: 64.06 | D82: 164.8450143 | E82: 220.440468
A83: 2017-02-08 | B83: 132.04 | C83: 63.34 | D83: 164.3719656 | E83: 217.9628355
A84: 2017-02-07 | B84: 131.53 | C84: 63.43 | D84: 163.7370845 | E84: 218.2725396
A85: 2017-02-06 | B85: 130.29 | C85: 63.64 | D85: 162.193452 | E85: 218.9951824
A86: 2017-02-03 | B86: 129.08 | C86: 63.68 | D86: 160.6871654 | E86: 219.1328286
A87: 2017-02-02 | B87: 128.53 | C87: 63.17 | D87: 160.0024897 | E87: 217.377839
A88: 2017-02-01 | B88: 128.75 | C88: 63.58 | D88: 160.27636 | E88: 218.788713
A89: 2017-01-31 | B89: 121.35 | C89: 64.65 | D89: 151.0643595 | E89: 222.4707502
A90: 2017-01-30 | B90: 121.63 | C90: 65.13 | D90: 151.4129217 | E90: 224.1225052
A91: 2017-01-27 | B91: 121.95 | C91: 65.78 | D91: 151.8112785 | E91: 226.3592567
A92: 2017-01-26 | B92: 121.94 | C92: 64.27 | D92: 151.7988298 | E92: 221.1631108
A93: 2017-01-25 | B93: 121.88 | C93: 63.68 | D93: 151.7241379 | E93: 219.1328286
A94: 2017-01-24 | B94: 119.97 | C94: 63.52 | D94: 149.3464459 | E94: 218.5822436
A95: 2017-01-23 | B95: 120.08 | C95: 62.96 | D95: 149.4833811 | E95: 216.6551961
A96: 2017-01-20 | B96: 120 | C96: 62.74 | D96: 149.3837919 | E96: 215.8981418
A97: 2017-01-19 | B97: 119.78 | C97: 62.3 | D97: 149.1099216 | E97: 214.384033
A98: 2017-01-18 | B98: 119.99 | C98: 62.5 | D98: =IF(B98="",0,IF(D99=0,100,D99/B99*B98)) -> 149.3713432 | E98: =IF(C98="",0,IF(E99=0,100,E99/C99*C98)) -> 215.0722643
A99: 2017-01-17 | B99: 120 | C99: 62.53 | D99: 149.3837919 | E99: 215.175499
A100: 2017-01-13 | B100: 119.04 | C100: 62.7 | D100: 148.1887215 | E100: 215.7604955
A101: 2017-01-12 | B101: 119.25 | C101: 62.61 | D101: 148.4501432 | E101: 215.4507915
A102: 2017-01-11 | B102: 119.75 | C102: 63.19 | D102: 149.0725756 | E102: 217.4466621
A103: 2017-01-10 | B103: 119.11 | C103: 62.62 | D103: 148.2758621 | E103: 215.485203
A104: 2017-01-09 | B104: 118.99 | C104: 62.64 | D104: 148.1264783 | E104: 215.5540262
A105: 2017-01-06 | B105: 117.91 | C105: 62.84 | D105: 146.7820242 | E105: 216.2422574
A106: 2017-01-05 | B106: 116.61 | C106: 62.3 | D106: 145.1636997 | E106: 214.384033
A107: 2017-01-04 | B107: 116.02 | C107: 62.3 | D107: 144.4292294 | E107: 214.384033
A108: 2017-01-03 | B108: 116.15 | C108: 62.58 | D108: 144.5910619 | E108: 215.3475568
A109: 2016-12-30 | B109: 115.82 | C109: 62.14 | D109: 144.1802564 | E109: 213.833448
A110: 2016-12-29 | B110: 116.73 | C110: 62.9 | D110: 145.3130835 | E110: 216.4487268
A111: 2016-12-28 | B111: 116.76 | C111: 62.99 | D111: 145.3504295 | E111: 216.7584308
A112: 2016-12-27 | B112: 117.26 | C112: 63.28 | D112: 145.9728619 | E112: 217.7563661
A113: 2016-12-23 | B113: 116.52 | C113: 63.24 | D113: 145.0516619 | E113: 217.6187199
A114: 2016-12-22 | B114: 116.29 | C114: 63.55 | D114: 144.765343 | E114: 218.6854783
A115: 2016-12-21 | B115: 117.06 | C115: 63.54 | D115: 145.723889 | E115: 218.6510668
A116: 2016-12-20 | B116: 116.95 | C116: 63.54 | D116: 145.5869538 | E116: 218.6510668
A117: 2016-12-19 | B117: 116.64 | C117: 63.62 | D117: 145.2010457 | E117: 218.9263593
A118: 2016-12-16 | B118: 115.97 | C118: 62.3 | D118: 144.3669862 | E118: 214.384033
A119: 2016-12-15 | B119: 115.82 | C119: 62.58 | D119: 144.1802564 | E119: 215.3475568
A120: 2016-12-14 | B120: 115.19 | C120: 62.68 | D120: 143.3959915 | E120: 215.6916724
A121: 2016-12-13 | B121: 115.19 | C121: 62.98 | D121: 143.3959915 | E121: 216.7240193
A122: 2016-12-12 | B122: 113.3 | C122: 62.17 | D122: 141.0431968 | E122: 213.9366827
A123: 2016-12-09 | B123: 113.95 | C123: 61.97 | D123: 141.852359 | E123: 213.2484515
A124: 2016-12-08 | B124: 112.12 | C124: 61.01 | D124: 139.5742562 | E124: 209.9449415
A125: 2016-12-07 | B125: 111.03 | C125: 61.37 | D125: 138.2173534 | E125: 211.1837577
A126: 2016-12-06 | B126: 109.95 | C126: 59.95 | D126: 136.8728993 | E126: 206.2973159
A127: 2016-12-05 | B127: 109.11 | C127: 60.22 | D127: 135.8272127 | E127: 207.2264281
A128: 2016-12-02 | B128: 109.9 | C128: 59.25 | D128: 136.810656 | E128: 203.8885065
A129: 2016-12-01 | B129: 109.49 | C129: 59.2 | D129: 136.3002614 | E129: 203.7164487
A130: 2016-11-30 | B130: 110.52 | C130: 60.26 | D130: 137.5824723 | E130: 207.3640743
A131: 2016-11-29 | B131: 111.46 | C131: 61.09 | D131: 138.7526453 | E131: 210.220234
A132: 2016-11-28 | B132: 111.57 | C132: 60.61 | D132: 138.8895805 | E132: 208.568479
A133: 2016-11-25 | B133: 111.79 | C133: 60.53 | D133: 139.1634508 | E133: 208.2931865
A134: 2016-11-23 | B134: 111.23 | C134: 60.4 | D134: 138.4663264 | E134: 207.8458362
A135: 2016-11-22 | B135: 111.8 | C135: 61.12 | D135: 139.1758994 | E135: 210.3234687
A136: 2016-11-21 | B136: 111.73 | C136: 60.86 | D136: 139.0887589 | E136: 209.4287681
A137: 2016-11-18 | B137: 110.06 | C137: 60.35 | D137: 137.0098344 | E137: 207.6737784
A138: 2016-11-17 | B138: 109.95 | C138: 60.64 | D138: 136.8728993 | E138: 208.6717137
A139: 2016-11-16 | B139: 109.99 | C139: 59.65 | D139: 136.9226939 | E139: 205.264969
A140: 2016-11-15 | B140: 107.11 | C140: 58.87 | D140: 133.3374829 | E140: 202.5808672
A141: 2016-11-14 | B141: 105.71 | C141: 58.12 | D141: 131.594672 | E141: 200
A142: 2016-11-11 | B142: 108.43 | C142: 59.02 | D142: 134.9807046 | E142: 203.0970406
A143: 2016-11-10 | B143: 107.79 | C143: 58.7 | D143: 134.183991 | E143: 201.9958706
A144: 2016-11-09 | B144: 110.88 | C144: 60.17 | D144: 138.0306237 | E144: 207.0543703
A145: 2016-11-08 | B145: 111.06 | C145: 60.47 | D145: 138.2546994 | E145: 208.0867171
A146: 2016-11-07 | B146: 110.41 | C146: 60.42 | D146: 137.4455372 | E146: 207.9146593
A147: 2016-11-04 | B147: 108.84 | C147: 58.71 | D147: 135.4910992 | E147: 202.0302822
A148: 2016-11-03 | B148: 109.83 | C148: 59.21 | D148: 136.7235155 | E148: 203.7508603
A149: 2016-11-02 | B149: 111.59 | C149: 59.43 | D149: 138.9144778 | E149: 204.5079147
A150: 2016-11-01 | B150: 111.49 | C150: 59.8 | D150: 138.7899913 | E150: 205.7811425
A151: 2016-10-31 | B151: 113.54 | C151: 59.92 | D151: 141.3419644 | E151: 206.1940812
A152: 2016-10-28 | B152: 113.72 | C152: 59.87 | D152: 141.5660401 | E152: 206.0220234
A153: 2016-10-27 | B153: 114.48 | C153: 60.1 | D153: 142.5121374 | E153: 206.8134893
A154: 2016-10-26 | B154: 115.59 | C154: 60.63 | D154: 143.8939375 | E154: 208.6373021
A155: 2016-10-25 | B155: 118.25 | C155: 60.99 | D155: 147.2052782 | E155: 209.8761184
A156: 2016-10-24 | B156: 117.65 | C156: 61 | D156: 146.4583593 | E156: 209.9105299
A157: 2016-10-21 | B157: 116.6 | C157: 59.66 | D157: 145.1512511 | E157: 205.2993806
A158: 2016-10-20 | B158: 117.06 | C158: 57.25 | D158: 145.723889 | E158: 197.0061941
A159: 2016-10-19 | B159: 117.12 | C159: 57.53 | D159: 145.7985809 | E159: 197.9697178
A160: 2016-10-18 | B160: 117.47 | C160: 57.66 | D160: 146.2342836 | E160: 198.4170681
A161: 2016-10-17 | B161: 117.55 | C161: 57.22 | D161: 146.3338728 | E161: 196.9029594
A162: 2016-10-14 | B162: 117.63 | C162: 57.42 | D162: =IF(B162="",0,IF(D163=0,100,D163/B163*B162)) -> 146.433462 | E162: =IF(C162="",0,IF(E163=0,100,E163/C163*C162)) -> 197.5911906
A163: 2016-10-13 | B163: 116.98 | C163: 56.92 | D163: 145.6242998 | E163: 195.8706125
A164: 2016-10-12 | B164: 117.34 | C164: 57.11 | D164: 146.0724511 | E164: 196.5244322
A165: 2016-10-11 | B165: 116.3 | C165: 57.19 | D165: 144.7777916 | E165: 196.7997247
A166: 2016-10-10 | B166: 116.05 | C166: 58.04 | D166: 144.4665754 | E166: 199.7247075
A167: 2016-10-07 | B167: 114.06 | C167: 57.8 | D167: 141.9892942 | E167: 198.89883
A168: 2016-10-06 | B168: 113.89 | C168: 57.74 | D168: 141.7776671 | E168: 198.6923606
A169: 2016-10-05 | B169: 113.05 | C169: 57.64 | D169: 140.7319806 | E169: 198.348245
A170: 2016-10-04 | B170: 113 | C170: 57.24 | D170: 140.6697373 | E170: 196.9717825
A171: 2016-10-03 | B171: 112.52 | C171: 57.42 | D171: 140.0722022 | E171: 197.5911906
A172: 2016-09-30 | B172: 113.05 | C172: 57.6 | D172: 140.7319806 | E172: 198.2105988
A173: 2016-09-29 | B173: 112.18 | C173: 57.4 | D173: 139.6489481 | E173: 197.5223675
A174: 2016-09-28 | B174: 113.95 | C174: 58.03 | D174: 141.852359 | E174: 199.6902959
A175: 2016-09-27 | B175: 113.09 | C175: 57.95 | D175: 140.7817752 | E175: 199.4150034
A176: 2016-09-26 | B176: 112.88 | C176: 56.9 | D176: 140.5203535 | E176: 195.8017894
A177: 2016-09-23 | B177: 112.71 | C177: 57.43 | D177: 140.3087265 | E177: 197.6256022
A178: 2016-09-22 | B178: 114.62 | C178: 57.82 | D178: 142.6864185 | E178: 198.9676531
A179: 2016-09-21 | B179: 113.55 | C179: 57.76 | D179: 141.354413 | E179: 198.7611838
A180: 2016-09-20 | B180: 113.57 | C180: 56.81 | D180: 141.3793103 | E180: 195.4920853
A181: 2016-09-19 | B181: 113.58 | C181: 56.93 | D181: 141.391759 | E181: 195.9050241
A182: 2016-09-16 | B182: 114.92 | C182: 57.25 | D182: 143.059878 | E182: 197.0061941
A183: 2016-09-15 | B183: 115.57 | C183: 57.19 | D183: 143.8690402 | E183: 196.7997247
A184: 2016-09-14 | B184: 111.77 | C184: 56.26 | D184: 139.1385535 | E184: 193.5994494
A185: 2016-09-13 | B185: 107.95 | C185: 56.53 | D185: 134.3831694 | E185: 194.5285616
A186: 2016-09-12 | B186: 105.44 | C186: 57.05 | D186: 131.2585584 | E186: 196.3179628
A187: 2016-09-09 | B187: 103.13 | C187: 56.21 | D187: 128.3829205 | E187: 193.4273916
A188: 2016-09-08 | B188: 105.52 | C188: 57.43 | D188: 131.3581476 | E188: 197.6256022
A189: 2016-09-07 | B189: 108.36 | C189: 57.66 | D189: 134.893564 | E189: 198.4170681
A190: 2016-09-06 | B190: 107.7 | C190: 57.61 | D190: 134.0719532 | E190: 198.2450103
A191: 2016-09-02 | B191: 107.73 | C191: 57.67 | D191: 134.1092991 | E191: 198.4514797
A192: 2016-09-01 | B192: 106.73 | C192: 57.59 | D192: 132.8644342 | E192: 198.1761872
A193: 2016-08-31 | B193: 106.1 | C193: 57.46 | D193: 132.0801693 | E193: 197.7288369
A194: 2016-08-30 | B194: 106 | C194: 57.89 | D194: 131.9556828 | E194: 199.2085341
A195: 2016-08-29 | B195: 106.82 | C195: 58.1 | D195: 132.9764721 | E195: 199.9311769
A196: 2016-08-26 | B196: 106.94 | C196: 58.03 | D196: 133.1258558 | E196: 199.6902959
A197: 2016-08-25 | B197: 107.57 | C197: 58.17 | D197: 133.9101208 | E197: 200.1720578
A198: 2016-08-24 | B198: 108.03 | C198: 57.95 | D198: 134.4827586 | E198: 199.4150034
A199: 2016-08-23 | B199: 108.85 | C199: 57.89 | D199: 135.5035479 | E199: 199.2085341
A200: 2016-08-22 | B200: 108.51 | C200: 57.67 | D200: 135.0802938 | E200: 198.4514797
A201: 2016-08-19 | B201: 109.36 | C201: 57.62 | D201: 136.138429 | E201: 198.2794219
A202: 2016-08-18 | B202: 109.08 | C202: 57.6 | D202: 135.7898668 | E202: 198.2105988
... 4798 more rows
